Cogmind - Beta 11.1 @@@ ROGUE MODE // 2022.04.23 @ 09:28:15 Player: Rainynight Result: Self-destructed Performance ------------- Evolutions (2) 1000 Regions Visited (5) 1000 Robots Destroyed (6) 30 Value Destroyed (71) 71 Prototype IDs (24) 480 Alien Tech Used (0) 0 Bonus (300) 300 TOTAL SCORE: 2881 Bonus ------- Aligned with FarCom 300 Cogmind --------- Core Integrity 471/550 Matter 158/300 Energy 129/275 System Corruption 0% Temperature Cool (18) Movement Flying (117) Ox1 Location -8/Materials Parts ------- > --- POWER (1) -------- Deuterium Engine > --- PROPULSION (2) --- Flight Unit Flight Unit > --- UTILITY (6) ------ Small Storage Unit Structural Scanner Improved Terrain Scanner Terrain Scan Processor > --- WEAPON (2) ------- (None) > --- INVENTORY (8) ---- Improved Deuterium Engine Improved Deuterium Engine Flight Unit Advanced Weight Redist. System Trap Reconfigurator Remote Datajack Flail Peak State ------------ > --- POWER ------------ Light Ion Engine > --- PROPULSION ------- Flight Unit Flight Unit > --- UTILITY ---------- Small Storage Unit Advanced Weight Redist. System Structural Scanner Improved Terrain Scanner Terrain Scan Processor Trap Reconfigurator > --- WEAPON ----------- Heavy Particle Cannon Light Assault Rifle > --- INVENTORY -------- Light Ion Engine Flight Unit Flight Unit Flight Unit [Rating: 26] Favorites ----------- Power Light Ion Engine Engine Light Ion Engine Propulsion Hover Unit Hover Unit Hover Unit Flight Unit Flight Unit Utility Structural Scanner Device Structural Scanner Storage Small Storage Unit Processor Terrain Scan Processor Hackware System Shield Weapon Makeshift Shrapnel Gun Energy Gun EM Pulse Gun Energy Cannon Heavy Particle Cannon Ballistic Gun Makeshift Shrapnel Gun Special Weapon Remote Datajack Build | -11 -10 -10 -10 -9 -8 ------- Run | Scr Mat Min Exi Min Mat Slots Evolved 4 | . . . . . 4 Power . | . . . . . . Propulsion . | . . . . . . Utility 4 | . . . . . 4 Weapon . | . . . . . . Parts Attached 30 | . 3 6 1 6 14 Power 5 | . . 1 1 1 2 Engine 5 | . . 1 1 1 2 Core . | . . . . . . Reactor . | . . . . . . Propulsion 12 | . 2 1 . 2 7 Treads . | . . . . . . Leg . | . . . . . . Wheel . | . . . . . . Hover 6 | . 2 1 . . 3 Flight 6 | . . . . 2 4 Utility 8 | . . 2 . 2 4 Device 5 | . . 1 . 1 3 Storage 1 | . . . . 1 . Processor 1 | . . . . . 1 Hackware 1 | . . 1 . . . Protection . | . . . . . . Artifact . | . . . . . . Weapon 5 | . 1 2 . 1 1 Energy Gun 1 | . 1 . . . . Energy Cannon 1 | . . 1 . . . Ballistic Gun 2 | . . 1 . 1 . Ballistic Cannon . | . . . . . . Launcher . | . . . . . . Special Weapon 1 | . . . . . 1 Impact Weapon . | . . . . . . Slashing Weapon . | . . . . . . Piercing Weapon . | . . . . . . Special Melee Weapon . | . . . . . . Unidentified Prototypes 1 | . . . . . 1 Corrupted Parts 1 | . . 1 . . . System Corruption 5 | . . 5 . . . Parts Lost 7 | . . 3 . 2 2 Power 1 | . . 1 . . . Propulsion 3 | . . 1 . 1 1 Utility 1 | . . . . . 1 Weapon 2 | . . 1 . 1 . Highest Loss Streak 2 | . . 2 . 2 2 To Critical Strikes . | . . . . . . Average Slot Usage (%) 71 | . 21 60 93 89 76 Engine 6 | . . 1 7 14 9 Hover 18 | . 9 27 28 7 2 Flight 5 | . . . . 15 14 Device 14 | . . 11 14 14 27 Storage 2 | . . . . 7 9 Processor 1 | . . . . . 9 Hackware 4 | . . 1 14 7 . Energy Gun 2 | . 11 4 . . . Energy Cannon 5 | . . . 14 14 . Ballistic Gun 9 | . . 13 14 9 2 Naked Turns 8 | . 8 . . . . Heaviest Build 19 | . 2 9 12 15 19 Greatest Support 25 | 3 12 12 12 17 25 Greatest Overweight (x) 3 | . . . . 3 3 Average Overweight (x) . | . . . . . . Largest Inventory Capacity 8 | 5 5 5 5 8 8 Average Capacity 5 | 5 5 5 5 6 8 Most Carried 8 | 2 4 5 5 8 8 Average Carried 5 | 1 2 4 4 6 7 Final Capacity 8 | 5 5 5 5 8 8 Final Carried 8 | 2 4 5 5 8 7 Class Distribution -------------------- 89% | Mutant 10% | Scavenger-Mutant Dominant Class ---------------- Mutant | -10/Materials Mutant | -10/Mines Mutant | -10/Exiles Scavenger-Mutant | -9/Mines Scavenger-Mutant | -8/Materials Resources | -11 -10 -10 -10 -9 -8 ----------- Run | Scr Mat Min Exi Min Mat Matter Collected 357 | 105 . 80 111 61 . Remotely . | . . . . . . Salvage Created 141 | . . 80 . 61 . Parts 16 | . . 7 . 9 . Haulers Intercepted . | . . . . . . Recyclers Shooed . | . . . . . . Parts Field Recycled . | . . . . . . Retrieved Matter . | . . . . . . Parts Self-Destructed . | . . . . . . Prevented . | . . . . . . Kills | -11 -10 -10 -10 -9 -8 ------- Run | Scr Mat Min Exi Min Mat Combat Hostiles Destroyed 4 | . . . . 4 . Guns 1 | . . . . 1 . Cannons 3 | . . . . 3 . Classes Destroyed 3 | . . 2 . 1 . Builder 1 | . . 1 . . . Recycler 1 | . . 1 . . . Swarmer 4 | . . . . 4 . Best Kill Streak 4 | . . 2 . 4 . Combat Bots Only 4 | . . . . 4 . Max Kills in Single Turn 2 | . . 2 . 1 . Gunslinging . | . . . . . . Exploded . | . . . . . . Melee . | . . . . . . Uniques/NPCs Destroyed . | . . . . . . Combat | -11 -10 -10 -10 -9 -8 -------- Run | Scr Mat Min Exi Min Mat Damage Taken 692 | . . 358 . 81 253 Core 233 | . . 129 . 25 79 Absorbed by Shields . | . . . . . . Core Remaining (%) 69 | 100 . . . 38 . Volleys Fired 11 | . 3 1 . 7 . Largest 2 | . 1 2 . 2 . Hottest 99 | . 40 64 . 99 . Shots Fired 17 | . 3 2 . 12 . Gun 10 | . 3 2 . 5 . Cannon 7 | . . . . 7 . Launcher . | . . . . . . Special . | . . . . . . Kinetic 6 | . . 1 . 5 . Thermal 7 | . . . . 7 . Explosive . | . . . . . . Electromagnetic 4 | . 3 1 . . . Robot Hit Streak 3 | . 1 2 . 3 . Robot Miss Streak 5 | . 2 . . 5 . Penetration Max . | . . . . . . Secondary Targets . | . . . . . . Shots Hit Robots 7 | . 1 1 . 5 . Core Hits 6 | . . 2 . 4 . Critical Kills . | . . . . . . Critical Parts Destroyed . | . . . . . . Critical Strikes . | . . . . . . Melee Attacks . | . . . . . . Impact . | . . . . . . Slashing . | . . . . . . Piercing . | . . . . . . Sneak Attacks . | . . . . . . Combat Hostiles . | . . . . . . Follow-up Attacks . | . . . . . . Damage Inflicted 212 | . 24 38 . 149 1 Guns 136 | . 24 38 . 74 . Cannons 75 | . . . . 75 . Explosions . | . . . . . . Melee . | . . . . . . Ramming 1 | . . . . . 1 Kinetic 97 | . . 23 . 74 . Thermal 75 | . . . . 75 . Explosive . | . . . . . . Electromagnetic 39 | . 24 15 . . . Impact . | . . . . . . Slashing . | . . . . . . Piercing . | . . . . . . Highest Corruption 6 | . . 6 6 6 . Average Corruption 5 | . . 5 6 6 . Corruption Purged . | . . . . . . Corruption Blocked . | . . . . . . Effects 6 | . . 1 2 3 . Message Errors 2 | . . . 1 1 . Matter Fused 1 | . . . 1 . . Data Loss (minor) 3 | . . 1 . 2 . Overload Shots . | . . . . . . Overflow Damage . | . . . . . . Projectiles . | . . . . . . Explosions . | . . . . . . Melee . | . . . . . . Knockbacks . | . . . . . . Impact . | . . . . . . Kinetic . | . . . . . . Secondary . | . . . . . . Self-Inflicted Damage . | . . . . . . Shots . | . . . . . . Rammed 1 | . . . . . 1 Targets Rammed 1 | . . . . . 1 Kicked . | . . . . . . Crushed . | . . . . . . Highest Temperature 310 | . . 8 . 310 . Average Temperature 149 | . . 4 . 158 . Received Heat Transfer 339 | . . 204 . . 135 Effects 1 | . . . . 1 . Energy Bleed 1 | . . . . 1 . Siege Activations . | . . . . . . Robots Corrupted . | . . . . . . Combat Hostiles . | . . . . . . Parts Fried . | . . . . . . Impact Corruptions . | . . . . . . Robots Melted . | . . . . . . Combat Hostiles . | . . . . . . Parts Melted . | . . . . . . Heat Transferred 111 | . . . . 111 . Parts Sabotaged . | . . . . . . Parts Stolen . | . . . . . . Parts Stripped . | . . . . . . Power Chain Reactions . | . . . . . . Missiles Intercepted . | . . . . . . Alert | -11 -10 -10 -10 -9 -8 ------- Run | Scr Mat Min Exi Min Mat Peak Influence 231 | . 30 231 . 121 91 Initial 46 | . . 11 . . 46 Average 101 | . 13 147 . 99 70 Maximum Alert Level 1 | . . 1 . . . Low Security (%) 82 | 100 100 58 . 100 100 Level 1 17 | . . 41 . . . Level 2 . | . . . . . . Level 3 . | . . . . . . Level 4 . | . . . . . . Level 5 . | . . . . . . High Security . | . . . . . . Max Security . | . . . . . . Squads Dispatched 2 | . 1 . . . 1 Investigation 1 | . 1 . . . . Extermination . | . . . . . . Reinforcement 1 | . . . . . 1 Assault . | . . . . . . Garrison . | . . . . . . Intercept . | . . . . . . Searches Triggered . | . . . . . . Construction Impeded . | . . . . . . Haulers Reinforced . | . . . . . . Active Scanning Responses . | . . . . . . Cargo Convoy Interrupts . | . . . . . . Stealth | -11 -10 -10 -10 -9 -8 --------- Run | Scr Mat Min Exi Min Mat Distress Signals . | . . . . . . Communications Jammed . | . . . . . . Distress Signals . | . . . . . . Times Spotted 27 | . 1 16 . 4 6 Peak Tracking Total 6 | . 1 6 . 4 3 Tactical Retreats 5 | . . 4 . . 1 Traps | -11 -10 -10 -10 -9 -8 ------- Run | Scr Mat Min Exi Min Mat Traps Triggered 2 | . 1 1 . . . Indirectly . | . . . . . . Trap Hack Attempts . | . . . . . . Triggered . | . . . . . . Disarmed . | . . . . . . Reprogrammed . | . . . . . . Reused . | . . . . . . Traps Extracted . | . . . . . . Installed . | . . . . . . Triggered . | . . . . . . Machines | -11 -10 -10 -10 -9 -8 ---------- Run | Scr Mat Min Exi Min Mat Machines Disabled 2 | . . . . 2 . Max in Single Turn 1 | . . . . 1 . Machines Sabotaged . | . . . . . . Garrisons Compromised . | . . . . . . Overloaded Fab Kills . | . . . . . . Hacking | -11 -10 -10 -10 -9 -8 --------- Run | Scr Mat Min Exi Min Mat Machines Accessed 5 | . 2 1 1 . 1 Terminals 3 | . 2 . . . 1 Fabricators . | . . . . . . Repair Stations . | . . . . . . Recycling Units . | . . . . . . Scanalyzers . | . . . . . . Garrison Access . | . . . . . . Total Hacks 13 | . 8 1 1 . 3 Successful 4 | . 2 1 1 . . Failed 9 | . 6 . . . 3 Catastrophic 1 | . . . . . 1 Database Lockouts . | . . . . . . Manual 4 | . 3 . 1 . . Terminals 11 | . 8 . . . 3 Fabricators . | . . . . . . Repair Stations . | . . . . . . Recycling Units . | . . . . . . Scanalyzers . | . . . . . . Garrison Access . | . . . . . . Terminal Hacks 4 | . 2 1 1 . . Open Door 1 | . . 1 . . . Dispatch Records 1 | . 1 . . . . Hauler Manifests 1 | . 1 . . . . EX-Prototype ID Bank 1 | . . . 1 . . Fabricator Hacks . | . . . . . . Repair Station Hacks . | . . . . . . Recycling Unit Hacks . | . . . . . . Scanalyzer . | . . . . . . Garrison Access Hacks . | . . . . . . Unauthorized Hacks . | . . . . . . Terminals . | . . . . . . Fabricators . | . . . . . . Repair Stations . | . . . . . . Recycling Units . | . . . . . . Scanalyzers . | . . . . . . Garrison Access . | . . . . . . Data Cores Recovered . | . . . . . . Used . | . . . . . . Hacking Detections 3 | . 2 . . . 1 Full Trace Events . | . . . . . . Feedback Events . | . . . . . . Feedback Blocked . | . . . . . . Robot Schematics Acquired . | . . . . . . Robots Built . | . . . . . . Authchips . | . . . . . . Time . | . . . . . . Total Robot Build Rating . | . . . . . . Part Schematics Acquired . | . . . . . . Parts Built . | . . . . . . Authchips . | . . . . . . Time . | . . . . . . Total Part Build Rating . | . . . . . . Parts Repaired . | . . . . . . Time . | . . . . . . Parts Recycled . | . . . . . . Recycled Matter . | . . . . . . Retrieved Matter . | . . . . . . Retrieved Components . | . . . . . . Parts Scanalyzed . | . . . . . . Part Schematics Acquired . | . . . . . . Parts Damaged . | . . . . . . Bothacking | -11 -10 -10 -10 -9 -8 ------------ Run | Scr Mat Min Exi Min Mat Used RIF Installer . | . . . . . . Robots Hacked . | . . . . . . Non-combat . | . . . . . . Combat . | . . . . . . Robot Hacks Applied . | . . . . . . Relay Couplers Released . | . . . . . . Fabnet Peak Effective % . | . . . . . . Robots Rewired . | . . . . . . Allies Hacked . | . . . . . . Hacks Repelled . | . . . . . . Allies | -11 -10 -10 -10 -9 -8 -------- Run | Scr Mat Min Exi Min Mat Total Allies . | . . . . . . Largest Group . | . . . . . . Highest-Rated Group . | . . . . . . Highest-Rated Ally . | . . . . . . Total Orders . | . . . . . . Ally Attacks . | . . . . . . Total Damage . | . . . . . . Kills . | . . . . . . Allies Corrupted . | . . . . . . Allies Melted . | . . . . . . Intel | -11 -10 -10 -10 -9 -8 ------- Run | Scr Mat Min Exi Min Mat Robot Analysis Total . | . . . . . . Derelict Logs Recovered 2 | . . 1 . 1 . Drone Launches . | . . . . . . Drone Recoveries . | . . . . . . Exploration | -11 -10 -10 -10 -9 -8 ------------- Run | Scr Mat Min Exi Min Mat Turns Passed 642 | 11 61 215 147 99 109 Spaces Moved 1002 | 19 95 356 259 135 138 Core 100 | 19 71 . . 1 9 Treads . | . . . . . . Legs . | . . . . . . Wheels . | . . . . . . Hover 669 | . 24 356 259 25 5 Flight 233 | . . . . 109 124 Fastest Speed 37 | 50 50 56 56 37 37 Average Speed 52 | 50 51 56 56 45 45 Slowest Speed 280 | 50 60 60 56 200 280 Overloaded Moves . | . . . . . . Propulsion Burnouts . | . . . . . . Robots Hopped . | . . . . . . Cave-ins Triggered . | . . . . . . Exploration Rate (%) 37 | 3 32 87 62 31 10 Regions Visited 5 Branch Regions 3 Pre-discovered Areas 1 | . . 1 . . . Known Exits Taken 1 | . . . . 1 . Unknown Exits Taken 4 | 1 1 1 1 . . Scrap Searched . | . . . . . . Spaces Dug . | . . . . . . Terrain Destroyed 3 | . . . . 3 . Melee . | . . . . . . Projectile 3 | . . . . 3 . AOE . | . . . . . . Terrain Rammed . | . . . . . . Walls Destroyed . | . . . . . . Machines Disabled . | . . . . . . Actions | -11 -10 -10 -10 -9 -8 --------- Run | Scr Mat Min Exi Min Mat Total 1095 | 20 102 368 260 159 186 Wait 19 | . . . . 6 13 Move 997 | 18 94 355 258 134 138 Hop . | . . . . . . Pick Up 18 | 2 2 4 1 4 5 Fast Attach 20 | . 3 5 . 3 9 Attach 7 | . . 1 1 . 5 Detach 2 | . . . . . 2 Swap 3 | . . . . 3 . Drop 17 | . . 2 . 2 13 Fire 11 | . 3 1 . 7 . Melee . | . . . . . . Ram 1 | . . . . . 1 Kick . | . . . . . . Crush . | . . . . . . Escape Stasis . | . . . . . . Rewire . | . . . . . . Trap . | . . . . . . Miscellaneous . | . . . . . . Route ------- -11/Scrapyard -10/Materials -10/Mines (discovered 2 exits: [*Mat] / *Exi) -10/Exiles -9/Mines -8/Materials History --------- Turn | Location | Event 5 | -11/Scrapyard | Discovered new exit (range 15) 12 | -11/Scrapyard | Entered Materials 67 | -10/Materials | Discovered new exit (range 9) 73 | -10/Materials | Entered Mines 79 | -10/Mines | Learned location of Recycling (-9) 88 | -10/Mines | A weapon hastily lodged in a ceiling crevice suddenly fell to the ground 123 | -10/Mines | Discovered new exit (range 8) 230 | -10/Mines | Joined a pair of Derelicts in attacking an 0b10 outpost 254 | -10/Mines | Met a Derelict who couldn't figure out how to use a Trap Extractor 257 | -10/Mines | Core integrity fell below 50% 285 | -10/Mines | Deemed a non-threat by the Exiles lab entrance 285 | -10/Mines | Discovered new exit (range 6) 288 | -10/Mines | Entered Exiles 302 | -10/Exiles | Met 8R-AWN 311 | -10/Exiles | Met EX-HEX 314 | -10/Exiles | Build established: Mutant 327 | -10/Exiles | Met EX-BIN 334 | -10/Exiles | Aligned with FarCom system 335 | -10/Exiles | Given EX-Vault access code 348 | -10/Exiles | Opened EX-Vault 353 | -10/Exiles | Found Trap Reconfigurator 367 | -10/Exiles | Warned to stay clear of 0b10 Research branches 399 | -10/Exiles | Met EX-DEC 430 | -10/Exiles | Discovered new exit (range 10) 435 | -10/Exiles | Left Exiles lab with Trap Reconfigurator 435 | -10/Exiles | Entered Mines 463 | -9/Mines | Met a Derelict bent on vengeance 528 | -9/Mines | Identified exit to Materials 534 | -9/Mines | Entered Materials 534 | -8/Materials | Evolved 4 slots: Utility x4 643 | -8/Materials | Self-destructed Last Messages --------------- 00604_ Connecting with Terminal... 00608_ Dropped Flight Unit. 00609_ Acquired Prototype Hover Unit. 00609_ Identified Aerolev Unit. 00610_ Dropped Flight Unit. 00611_ Acquired Flight Unit. 00612_ Dropped Flight Unit. 00614_ Acquired Faulty Aerolev Unit. 00614_ Malfunction: Energy drain (-6). 00617_ Dropped Faulty Aerolev Unit. 00622_ Acquired Aerolev Unit. 00625_ Dropped Aerolev Unit. 00629_ Acquired Flight Unit. 00633_ Dropped Aerolev Unit. 00634_ Acquired Flight Unit. 00636_ Flight Unit destroyed. 00637_ Slammed into G-47 Trooper. 00637_ Destabilizing: System interference. 00637_ Terrain Scan Processor temporarily disabled. 00640_ Adv. Weight Redist. System destroyed. Map ----- +----------------------------------------------------+ | ???????????????????????????????????? | | ???????????????????????????????????? | | ???????????????????????????????????? | | ???????????????????????????????????? | | ?????????????????#??????"? ??"??? + | | ????????????????????????????????? # | | ?????????????????#??????????????? # | | ???????????#?????????????????? ?? # | | ???????????????????#########+????## | | ???????????????????######### ????## | | ????????? ?? ????#?## # ###### | | ????????Y? ????? ??## """ # ###### | | ????#???? ??? ?? ??## """ # | | ???#?????????? ? #### """ # | | #???#??##?? ? ? #### + | | #??????#? ???? ? + # """ #### | | ??#?????#??????? # + """ #### | | ???#?#??# # # """ #### | | ??#??#?######+#### # + | | #????#???## #T# # """ #### | | ??#?#????## # """ #####+### | | ??????#??## + """ # | | #??######## ###### ]# = | | ?#?######### ############## | | ???## == gg# # ? ####### !!! | | #??##== == @ + ??? ??????## !! | | ???##=== g # # ?????##??## !!! | | ??### # # ?????#????## | | ???## #### ?????????## | | ??### #### ??????#?#### | | ???##########??????###???########### | | ?#?##########???????#?????########## | | ?#????#?????#?????#???#?#??????????? | | ??#????#????#???????????#??????#???? | | ????????????##?????#?#?????????????? | | ???????????????????????????????????? | | ?#??#?????????????????????????#????? | | ?????##?#??????????????????????????? | | #???????????????????#??????????????? | | ??#??????#?????#???????????????????? | | ?#?????????????????????????????????? | | ??????#????????????????????????????? | | | | | | | | | | | | | | | | | +----------------------------------------------------+ Best States ------------- Heat Dissipation 31 Energy Generation 16 Energy Capacity 290 Matter Stores 300 Matter Capacity 300 Sight Range 16 Terrain Scan Range 16 Terrain Scan Density 85 Additional Mass Support 9 Evasion (%) 62 Defensive Hacking 10 Item Schematics ----------------- None Robot Schematics ------------------ None Fabricated ------------ Nothing Alien Tech Used ----------------- None Achievements -------------- None Challenges ------------ None Game ------ Seed DynamicPropulsionMinigun Manual? 0 Play Time 00:14:11 Cumulative 97.5 hours Start 2022.04.23 @ 09:15:33 End 2022.04.23 @ 09:28:15 Sessions 1 Manual Loads 0 Difficulty Rogue Special Mode None Game No. 120 Rogue 120 Adventurer 0 Explorer 0 Win Type - Total 4 Types 4/0/0/0/0/0/0/0/0 Lore% 53 Gallery% 58 Achievement% 45 Wizard Run 0 Options --------- ASCII 1 Keyboard 1 Movement Numpad Keybinds 0 Fullscreen 1 Font 18/X11 Map View 76x50 Tactical HUD 1 Map Filters NONE Filters NONE Steam 1 RUN: 9693eb0d-08d2-477c-8063-4e6dea813909